bitfinex-derivatives/quotes_SOLF0:USTF0_20260126
["timestamp","ask_amount","ask_price","bid_price","bid_amount"]
[1769445530697,2.19242653,124.25,124.18,32.46830738]
[1769445530892,2.1406417,124.25,124.18,32.46830738]
[1769445531092,7.2515,124.23,124.18,32.46830738]
[1769445531298,1.98739409,124.23,124.16,32.46830738]
[1769445531692,1.98739409,124.23,124.14,32.46830738]
[1769445531893,1.72109617,124.22,124.14,32.46830738]
[1769445532098,1.72109617,124.21,124.14,32.46830738]
[1769445532294,7.2538,124.19,124.11,32.46830738]
[1769445532497,7.30570008,124.19,124.11,32.46830738]
[1769445532702,0.05190008,124.19,124.11,39.72620738]
[1769445533004,1.51493442,124.16,124.07,32.46830738]
[1769445533398,7.2562,124.15,124.07,32.46830738]
[1769445533794,0.05260186,124.13,124.07,32.46830738]
[1769445534907,7.31000186,124.13,124.07,32.46830738]
[1769445535308,0.05260186,124.13,124.07,32.46830738]
[1769445536609,0.05260186,124.13,124.07,39.72900738]
[1769445537208,0.05260186,124.13,124.08,39.72840738]
[1769445537807,1.11003379,124.15,124.08,39.72840738]
[1769445538001,413.60865502,124.19,124.05,434.3616]
[1769445538002,7.77490392,124.18,124.09,32.46830738]
[1769445538602,7.77490392,124.18,124.1,39.72730738]
[1769445539508,0.05511473,124.15,124.1,39.72730738]
[1769445540610,0.05511473,124.15,124.11,39.72660738]
[1769445541107,0.05511473,124.15,124.11,32.46830738]
[1769445541309,0.05511473,124.15,124.09,32.46830738]
[1769445541706,0.05511473,124.15,124.06,32.46830738]
[1769445542208,112.8855,124.14,124.06,32.46830738]
[1769445542711,0.05194576,124.12,124.06,32.46830738]
[1769445542907,112.9104,124.11,124.03,32.46830738]
[1769445543306,7.2604,124.08,124.03,32.46830738]
[1769445543510,118.96175502,124.13,124.03,32.46830738]
[1769445543912,0.05957686,124.07,124.03,32.46830738]
[1769445544106,0.05957686,124.07,124.03,39.73130738]
[1769445544415,118.96175502,124.13,124.07,0.053289]
[1769445544617,112.9134,124.11,124.03,32.46830738]
[1769445545112,7.2598,124.09,124.03,32.46830738]
[1769445546510,0.05662325,124.07,124.03,32.46830738]
[1769445546815,0.05662325,124.07,124.02,7.2637]
[1769445546816,7.2589,124.11,124.05,32.52181962]
[1769445547315,7.2589,124.11,124.05,32.46830738]
[1769445548217,7.2589,124.11,124.07,0.06079811]
[1769445548811,112.8607,124.17,124.07,32.52910549]
[1769445549314,112.8607,124.17,124.07,32.46830738]
[1769445549720,112.8607,124.17,124.11,0.05910197]
[1769445550819,7.2568,124.14,124.11,0.05910197]
[1769445551719,7.2574,124.13,124.06,32.46830738]
[1769445552321,112.8671,124.16,124.06,32.46830738]
[1769445552507,7.2568,124.14,124.07,39.72900738]
[1769445553108,112.8607,124.17,124.08,39.72850738]
[1769445553813,112.8844,124.14,124.08,0.06168556]
[1769445554014,112.8844,124.14,124.05,32.46830738]
[1769445554614,112.8844,124.14,124.08,0.05898527]
[1769445554913,7.2579,124.12,124.08,0.05898527]
[1769445555416,7.2579,124.12,124.02,119.05525502]
[1769445555417,0.05646183,124.11,124.02,32.46830738]
[1769445555920,112.9016,124.12,124.03,39.73120738]
[1769445556127,118.96015502,124.13,124.03,32.46830738]
[1769445556316,118.94325502,124.15,124.03,32.46830738]
[1769445556816,0.05570956,124.09,124.03,32.46830738]
[1769445557021,7.2585,124.12,124.05,39.73010738]
[1769445557320,112.8853,124.14,124.08,0.05736375]
[1769445558518,7.2586,124.11,124.08,0.05736375]
[1769445561124,7.2578,124.13,124.08,0.05736375]
[1769445561319,7.2578,124.13,124.08,32.12087626]
[1769445562024,7.2579,124.12,124.08,32.12087626]
[1769445562623,7.2579,124.12,124.08,32.06351251]
[1769445562925,7.2579,124.12,124.09,0.05657424]
[1769445563122,7.2573,124.14,124.09,0.05657424]
[1769445563827,7.2575,124.13,124.09,0.05657424]
[1769445564329,112.8742,124.15,124.09,0.05657424]
[1769445564719,7.2573,124.13,124.09,0.05657424]
[1769445565319,112.883,124.14,124.09,0.05657424]
[1769445565531,112.883,124.14,124.05,32.06351251]
[1769445565720,0.05337669,124.12,124.05,32.06351251]
[1769445566834,7.2592,124.1,124.05,32.06351251]
[1769445567630,112.8961,124.13,124.05,32.06351251]
[1769445567631,7.2597,124.09,124.05,32.06351251]
[1769445567833,7.31617181,124.09,124.03,7.2631]
[1769445568634,7.31617181,124.09,124.02,32.06351251]
[1769445568635,7.2603,124.08,124.02,32.06351251]
[1769445568940,0.05647181,124.09,124.02,32.06351251]
[1769445569136,112.9221,124.1,124.02,32.06351251]
[1769445569628,0.05525839,124.07,124.02,32.06351251]
[1769445570833,113.00565839,124.07,123.99,32.06351251]
[1769445571025,113.00565839,124.07,123.96,39.33061251]
[1769445571026,7.2632,124.03,123.96,39.33061251]
[1769445571235,112.9683,124.05,123.96,32.06351251]
[1769445571736,0.05211857,124.02,123.96,32.06351251]
[1769445573430,7.31611857,124.02,123.96,32.06351251]
[1769445573631,0.05211857,124.02,123.96,32.06351251]
[1769445576338,7.31611857,124.02,123.96,32.06351251]
[1769445576545,0.05211857,124.02,123.96,32.06351251]
[1769445576745,321.74,124.07,123.97,32.06351251]
[1769445576939,440.82823607,124.08,123.97,32.06351251]
[1769445577143,440.82823607,124.08,123.98,32.0949061]
[1769445577450,112.9569,124.06,123.98,32.03745322]
[1769445577849,112.9491,124.07,123.98,32.03745322]
[1769445578252,112.9491,124.07,124.01,0.05989877]
[1769445578851,7.2626,124.04,124.01,0.05989877]
[1769445579446,7.262,124.06,124.01,0.05989877]
[1769445579648,440.82823607,124.08,124.01,0.05989877]
[1769445580356,7.2616,124.06,124.01,0.05989877]
[1769445580751,329.0607,124.08,124.01,32.09735199]
[1769445580952,112.9169,124.11,124.01,32.09735199]
[1769445581453,7.2598,124.09,124.03,32.03745322]
[1769445581655,7.2598,124.09,124.03,34.42071303]
[1769445581856,7.2598,124.09,124.03,32.03745322]
[1769445582157,9.64305981,124.09,124.03,32.03745322]
[1769445582359,9.64305981,124.09,124.05,0.0512866]
[1769445583156,7.2598,124.09,124.05,0.0512866]
[1769445584657,434.7696,124.12,124.05,0.0512866]
[1769445584658,7.2605,124.08,124.05,0.0512866]
[1769445584860,112.9211,124.1,124.02,32.03745322]
[1769445585260,112.9211,124.1,124.0,39.30185322]
[1769445585462,112.938,124.08,124.0,32.03745322]
[1769445585664,112.9468,124.07,123.96,32.03745322]
[1769445586054,0.0570947,124.05,123.96,32.03745322]
[1769445586356,119.10642135,124.05,123.94,32.03745322]
[1769445586557,112.9691,124.05,123.95,32.03745322]
[1769445586856,225.919,124.06,123.95,32.03745322]
[1769445587063,225.919,124.06,123.97,39.30405322]
[1769445587957,7.2628,124.04,123.97,39.30405322]
[1769445588158,112.9338,124.09,123.97,32.03745322]
[1769445588365,112.9378,124.08,123.97,32.03745322]
[1769445588555,112.9378,124.08,123.99,32.09053875]
[1769445588861,112.9378,124.08,124.0,7.46020989]
[1769445589058,112.9338,124.09,123.99,32.09053875]
[1769445589059,7.2613,124.07,124.01,39.49766311]
[1769445589261,7.2613,124.07,124.02,7.46020989]
[1769445589463,112.9338,124.09,124.03,1.584e-05]
[1769445589663,0.05115462,124.05,124.03,1.584e-05]
[1769445589867,112.9338,124.09,124.03,1.584e-05]
[1769445590054,112.9388,124.08,124.03,1.584e-05]
[1769445591561,7.2619,124.06,124.03,1.584e-05]
[1769445591761,231.91842665,124.11,124.03,1.584e-05]
[1769445592163,231.91842665,124.11,124.01,32.03745322]
[1769445592363,7.2608,124.08,124.01,39.30155322]
[1769445592560,112.9286,124.09,124.01,32.03745322]
[1769445592760,7.2608,124.07,124.01,32.03745322]
[1769445592965,7.2608,124.07,124.03,0.05175513]
[1769445595265,7.2601,124.09,124.03,0.05175513]
[1769445595464,118.99952665,124.11,124.03,0.05175513]
[1769445595659,112.9189,124.11,124.03,32.08920835]
[1769445595865,7.2596,124.1,124.03,32.03745322]
[1769445596260,287.62,124.12,124.03,32.03745322]
[1769445596261,7.2596,124.09,124.03,32.03745322]
[1769445596568,7.2596,124.09,124.05,0.05949524]
[1769445597168,0.05181857,124.07,124.05,0.05949524]
[1769445598062,0.05181857,124.07,124.03,32.03745322]
[1769445598668,0.05181857,124.07,124.0,32.03745322]
[1769445599169,7.31261857,124.07,124.0,32.03745322]
[1769445599571,0.05181857,124.07,124.0,32.03745322]
[1769445599869,7.31271857,124.07,124.01,39.30175322]
[1769445600265,7.2609,124.07,124.01,32.03745322]
[1769445600467,112.9407,124.08,123.99,32.03745322]
[1769445600865,0.05279519,124.05,123.99,32.03745322]
[1769445601059,0.05279519,124.05,123.96,32.03745322]
[1769445601363,112.9747,124.04,123.96,32.03745322]
[1769445601563,112.968,124.05,123.96,32.03745322]
[1769445602078,0.0552873,124.01,123.96,32.03745322]
[1769445602265,0.0552873,124.01,123.96,39.30455322]
[1769445602569,112.9407,124.08,123.97,32.00980957]
[1769445602865,6.08062665,124.09,123.97,32.00980957]
[1769445603178,7.2619,124.06,123.99,7.2653]
[1769445603367,7.2619,124.06,123.99,39.27510957]
[1769445603774,7.2607,124.08,124.0,39.27460957]
[1769445604071,321.82,124.1,124.0,32.00980957]
[1769445604371,118.98972665,124.12,124.0,32.00980957]
[1769445604571,6.08062665,124.12,124.03,32.00980957]
[1769445604873,112.8938,124.13,124.03,32.00980957]
[1769445605967,434.7288,124.14,124.03,32.00980957]
[1769445606668,7.2579,124.12,124.06,32.00980957]
[1769445606869,6.08062665,124.15,124.06,32.00980957]
[1769445607075,118.93392665,124.18,124.06,32.00980957]
[1769445607275,7.2572,124.14,124.07,39.27050957]
[1769445608072,112.8569,124.17,124.07,32.00980957]
[1769445608262,7.2574,124.13,124.06,32.00980957]
[1769445608874,112.8689,124.16,124.06,32.00980957]
[1769445609176,112.8845,124.14,124.06,32.00980957]
[1769445609375,112.8845,124.14,124.01,119.07442665]
[1769445609376,7.2586,124.11,124.04,7.2625]
[1769445609572,112.8948,124.13,124.04,32.00980957]
[1769445609771,118.97542665,124.13,124.04,32.00980957]
[1769445611871,7.2585,124.11,124.04,32.00980957]
[1769445612272,112.8689,124.16,124.04,32.00980957]
[1769445612778,7.2578,124.13,124.06,7.2613]
[1769445612979,112.8843,124.14,124.04,32.00980957]
[1769445614979,7.2587,124.11,124.04,39.27200957]
[1769445615678,7.2577,124.13,124.06,32.00980957]
[1769445616177,7.2579,124.12,124.06,32.00980957]
[1769445616479,112.8859,124.14,124.06,32.00980957]
[1769445616679,7.2585,124.11,124.06,32.00980957]
[1769445616974,112.8937,124.13,124.03,32.00980957]
[1769445617282,7.2592,124.1,124.03,32.00980957]
[1769445618684,7.75355935,124.09,124.03,32.00980957]
[1769445618884,7.2592,124.1,124.03,39.27280957]
[1769445619077,7.75354687,124.09,124.03,39.27280957]
[1769445619278,7.2592,124.1,124.03,39.27280957]
[1769445619583,7.7550109,124.09,124.03,39.27280957]
[1769445619778,7.2592,124.1,124.03,39.27280957]
[1769445619982,7.7550109,124.09,124.03,39.27280957]
[1769445620183,7.2592,124.1,124.03,39.27280957]
[1769445620381,7.75675437,124.09,124.03,39.27280957]
[1769445620579,7.2597,124.09,124.03,39.27280957]
[1769445621281,112.9032,124.12,124.03,39.27280957]
[1769445621482,7.75867638,124.11,124.03,39.27280957]
[1769445621678,7.75867638,124.1,124.03,39.27280957]
[1769445621982,7.75867638,124.09,124.03,39.27280957]
[1769445622284,7.2597,124.09,124.03,39.27280957]
[1769445623281,7.259,124.11,124.03,39.27280957]
[1769445623581,7.76117629,124.1,124.03,39.27280957]
[1769445623782,7.76117629,124.09,124.03,39.27280957]
[1769445623987,7.2591,124.1,124.03,39.27280957]
[1769445624285,7.76144283,124.09,124.03,39.27280957]
[1769445624492,7.2591,124.1,124.03,39.27280957]
[1769445624788,7.7622829,124.09,124.03,39.27280957]
[1769445624982,7.2591,124.1,124.03,39.27280957]
[1769445625181,7.76219249,124.09,124.03,39.27280957]
[1769445625488,7.2591,124.1,124.03,39.27280957]
[1769445625683,7.76345075,124.09,124.03,39.27280957]
[1769445625886,7.76345075,124.08,124.03,39.27280957]
[1769445626183,9.642383,124.1,124.03,39.27280957]
[1769445626481,7.76401381,124.09,124.03,39.27280957]
[1769445626682,7.76401381,124.08,124.03,39.27280957]
[1769445626883,9.642383,124.1,124.03,39.27280957]
[1769445627086,15.02371381,124.09,124.03,39.27280957]
[1769445627283,7.76401381,124.08,124.03,39.27280957]
[1769445627474,7.2597,124.09,124.03,39.27280957]
[1769445627678,7.76404518,124.08,124.03,39.27280957]
[1769445627884,7.2597,124.09,124.03,39.27280957]
[1769445628088,7.76404518,124.08,124.03,39.27280957]
[1769445628281,7.2597,124.09,124.03,39.27280957]
[1769445628476,7.76392429,124.08,124.03,39.27280957]
[1769445628680,7.2597,124.09,124.03,32.00980957]
[1769445628882,7.2597,124.09,124.02,9.646983]
[1769445628883,10.14760698,124.08,124.02,32.00980957]
[1769445629086,2.383283,124.06,123.99,32.00980957]
[1769445629288,2.383283,124.06,123.98,2.383283]
[1769445629289,9.644883,124.06,124.0,39.27430957]
[1769445629580,7.76623721,124.05,124.0,32.00980957]
[1769445629781,9.644883,124.06,124.0,32.00980957]
[1769445630082,7.76667494,124.05,124.0,32.00980957]
[1769445630282,7.2621,124.05,124.0,32.00980957]
[1769445630689,2.383283,124.06,124.0,32.00980957]
[1769445630984,7.76663964,124.05,124.0,32.00980957]
[1769445631184,7.76792923,124.04,124.0,32.00980957]
[1769445631384,2.383283,124.06,124.0,32.00980957]
[1769445631688,7.76801972,124.05,124.0,32.00980957]
[1769445631879,7.76801972,124.04,124.0,32.00980957]
[1769445632084,9.64646938,124.06,124.0,32.00980957]
[1769445632283,7.77041769,124.05,124.0,32.00980957]
[1769445632589,9.64586938,124.08,124.0,34.39487895]
[1769445632784,2.38506938,124.08,124.0,34.39487895]
[1769445633286,2.38506938,124.07,124.0,32.00980957]
[1769445633889,9.64586938,124.07,124.0,39.27410957]
[1769445634187,9.64586938,124.07,124.01,28.12460073]
[1769445635282,2.38506938,124.05,123.99,30.50967011]
[1769445635487,2.38506938,124.05,123.99,28.12460073]
[1769445635693,119.03818183,124.07,123.99,28.12460073]
[1769445636093,7.2626,124.04,123.99,28.12460073]
[1769445636395,7.2626,124.04,123.98,7.266]
[1769445636698,7.2626,124.04,123.98,35.39060073]
[1769445637497,7.2626,124.04,123.99,28.12460073]
[1769445639492,7.2632,124.03,123.97,28.12460073]
[1769445639702,119.05458183,124.05,123.97,28.12460073]
[1769445641095,7.2638,124.02,123.97,28.12460073]
[1769445643299,6.08598183,124.03,123.95,28.12460073]
[1769445643802,7.2644,124.01,123.95,35.39230073]
[1769445645004,7.2637,124.02,123.96,28.12460073]
[1769445645204,7.65795137,124.01,123.96,28.12460073]
[1769445645405,6.08598183,124.09,123.97,28.12460073]
[1769445645607,7.65535711,124.07,123.97,28.12460073]
[1769445645798,7.65535711,124.06,123.97,28.12460073]
[1769445645998,7.65535711,124.05,123.97,28.12460073]
[1769445646200,7.65535711,124.04,123.99,28.12460073]
[1769445646401,119.03588183,124.07,123.99,28.12460073]
[1769445646601,7.6546865,124.06,123.99,28.12460073]
[1769445646800,7.2633,124.03,123.99,28.12460073]
[1769445647207,127.4465,124.1,123.99,28.12460073]
[1769445647404,7.52385024,124.07,123.99,28.12460073]
[1769445647595,7.52385024,124.07,123.95,119.13678183]
[1769445647596,7.52385024,124.06,124.0,28.12460073]
[1769445647798,112.9272,124.1,124.0,28.12460073]
[1769445648098,440.86228183,124.11,124.0,28.12460073]
[1769445648099,7.52202866,124.09,124.0,28.12460073]
[1769445648298,7.52202866,124.08,124.0,28.12460073]
[1769445648504,440.86228183,124.11,124.0,28.12460073]
[1769445648806,7.2603,124.08,124.02,28.12460073]
[1769445649707,335.20498183,124.11,124.04,28.12460073]
[1769445649908,7.259,124.11,124.04,28.12460073]
[1769445650405,7.2578,124.13,124.05,28.12460073]
[1769445651410,7.258,124.12,124.05,35.38650073]
[1769445651713,7.258,124.12,124.06,28.12460073]
[1769445652813,7.2585,124.11,124.06,28.12460073]
[1769445653407,7.2592,124.1,124.03,28.12460073]
[1769445655013,7.2592,124.1,124.04,28.12460073]
[1769445655809,7.2597,124.09,124.04,28.12460073]
[1769445656816,7.2603,124.08,124.04,28.12460073]
[1769445657019,112.923,124.1,124.02,28.12460073]
[1769445657312,7.2609,124.07,124.02,28.12460073]
[1769445657512,9.64535864,124.07,124.02,28.12460073]
[1769445657819,9.64605864,124.06,124.02,28.12460073]
[1769445659117,2.38445864,124.07,124.02,28.12460073]
[1769445659808,2.38445864,124.09,124.02,30.50905937]
[1769445660417,2.38445864,124.1,124.02,28.12460073]
[1769445660717,9.64405864,124.1,124.02,30.50905937]
[1769445660916,127.4024,124.14,124.06,28.12460073]
[1769445660917,2.38445864,124.13,124.06,28.12460073]
[1769445661513,7.2585,124.11,124.06,28.12460073]
[1769445661918,112.8888,124.14,124.06,28.12460073]
[1769445661919,7.2591,124.1,124.06,28.12460073]
[1769445662219,112.9061,124.12,124.03,28.12460073]
[1769445663020,7.2597,124.09,124.03,28.12460073]
[1769445663613,112.9061,124.12,124.03,28.12460073]
[1769445663614,7.2602,124.08,124.03,28.12460073]
[1769445663815,119.00512212,124.1,123.99,28.12460073]
[1769445664717,7.2614,124.07,124.01,35.38890073]
[1769445666823,7.2602,124.08,124.02,28.12460073]
[1769445667022,112.9061,124.12,124.03,28.12460073]
[1769445667420,7.2596,124.1,124.03,28.12460073]
[1769445667724,6.07712212,124.14,124.05,28.12460073]
[1769445667916,6.54789467,124.14,124.05,28.12460073]
[1769445668116,6.54789467,124.14,124.06,28.12460073]
[1769445668117,7.2585,124.11,124.06,28.12460073]
[1769445669024,7.2591,124.1,124.04,28.12460073]
[1769445669912,112.9117,124.11,124.04,28.12460073]
[1769445671124,7.2602,124.08,124.04,28.12460073]
[1769445671324,7.2602,124.08,124.02,28.12460073]
[1769445671516,7.2614,124.06,124.0,28.12460073]
[1769445671719,112.9332,124.09,124.0,28.12460073]
[1769445671919,118.99992212,124.1,124.0,28.12460073]
[1769445672318,7.2614,124.06,124.01,28.12460073]
[1769445672519,118.99992212,124.1,124.01,28.12460073]
[1769445672721,118.98452212,124.12,124.01,28.12460073]
[1769445672920,112.9074,124.12,124.04,28.12460073]
[1769445673727,7.2597,124.09,124.04,28.12460073]
[1769445674327,7.2597,124.09,124.0,113.0059]
[1769445674328,7.2604,124.08,124.01,35.38890073]
[1769445674521,7.2604,124.08,124.02,28.12460073]
[1769445674922,7.2609,124.07,124.02,28.12460073]
[1769445675224,112.914,124.11,124.03,28.12460073]
[1769445675425,7.2604,124.08,124.03,28.12460073]
[1769445676426,112.914,124.11,124.01,28.12460073]
[1769445676427,125.54915328,124.1,124.01,28.12460073]
[1769445676627,118.99672212,124.1,124.01,28.12460073]
[1769445677729,7.2614,124.07,124.01,28.12460073]
[1769445677928,112.9304,124.09,124.01,28.12460073]
[1769445678627,7.36233008,124.08,124.01,28.12460073]
[1769445678828,7.36233008,124.07,124.01,28.12460073]
[1769445679028,112.9304,124.09,124.01,28.12460073]
[1769445679029,14.62383008,124.06,124.01,28.12460073]
[1769445679230,119.01552212,124.08,123.99,7.2655]
[1769445679426,7.3625677,124.07,123.99,35.39010073]
[1769445679729,7.3625677,124.06,124.0,28.12460073]
[1769445679928,7.3625677,124.05,124.0,28.12460073]
[1769445681030,7.2614,124.06,124.0,28.12460073]
[1769445682328,7.2621,124.05,124.0,28.12460073]
[1769445682525,120.30989614,124.07,124.0,28.12460073]
[1769445682726,120.30989614,124.07,123.97,7.2664]
[1769445682727,112.9657,124.05,123.95,28.12460073]
[1769445683028,7.36319614,124.04,123.95,28.12460073]
[1769445683428,7.36319614,124.03,123.95,28.12460073]
[1769445683629,7.36319614,124.04,123.95,28.12460073]
[1769445683826,7.36319614,124.03,123.96,28.12460073]
[1769445684534,7.2645,124.01,123.96,28.12460073]
[1769445686227,7.2652,124.0,123.96,28.12460073]
[1769445687224,14.62996924,124.02,123.96,28.12460073]
[1769445687628,7.36566924,124.02,123.96,28.12460073]
[1769445687828,7.2644,124.01,123.96,28.12460073]
[1769445689130,14.62551456,124.02,123.96,28.12460073]
[1769445689432,7.2638,124.02,123.96,28.12460073]
[1769445689935,14.62554077,124.02,123.96,28.12460073]
[1769445690133,7.2638,124.02,123.96,28.12460073]
[1769445690536,14.62555325,124.02,123.96,28.12460073]
[1769445690838,119.05432212,124.04,123.96,28.12460073]
[1769445690839,7.2644,124.01,123.96,28.12460073]
[1769445691040,120.34856557,124.03,123.94,28.12460073]
[1769445691336,126.43228769,124.02,123.94,28.12460073]
[1769445691529,7.36176557,124.01,123.94,28.12460073]
[1769445691735,7.36176557,124.0,123.94,28.12460073]
[1769445691936,7.36176557,124.01,123.94,28.12460073]
[1769445692132,7.36176557,124.0,123.94,28.12460073]
[1769445692330,7.2656,123.99,123.94,28.12460073]
[1769445693634,7.2649,124.0,123.94,28.12460073]
[1769445694336,7.35423458,124.01,123.95,28.12460073]
[1769445694532,7.35423458,124.03,123.95,28.12460073]
[1769445694734,7.35423458,124.05,123.95,28.12460073]
[1769445695036,119.05239921,124.06,123.93,126.30571425]
[1769445695037,7.35423458,124.04,123.97,28.12460073]
[1769445695238,7.35423458,124.05,123.97,28.12460073]
[1769445695434,7.35423458,124.04,123.97,28.12460073]
[1769445695739,7.35423458,124.03,123.97,28.12460073]
[1769445695941,7.2638,124.02,123.97,28.12460073]
[1769445697236,7.2643,124.01,123.95,28.12460073]
[1769445697438,112.968,124.05,123.95,28.12460073]
[1769445697638,7.34972135,124.04,123.95,28.12460073]
[1769445697839,7.34972135,124.03,123.95,28.12460073]
[1769445698043,7.34972135,124.04,123.96,28.12460073]
[1769445698338,7.34972135,124.03,123.96,28.12460073]
[1769445698644,7.34972135,124.04,123.96,28.12460073]
[1769445699642,7.34972135,124.05,123.96,28.12460073]
[1769445699838,7.34972135,124.05,123.98,28.12460073]
[1769445700038,7.34818089,124.08,123.98,28.12460073]
[1769445700244,7.34818089,124.07,123.98,28.12460073]
[1769445700537,7.34818089,124.07,124.01,28.12460073]
[1769445700538,7.2608,124.07,124.01,28.12460073]
[1769445700736,321.8,124.09,124.01,28.12460073]
[1769445701130,7.3473905,124.08,124.01,28.12460073]
[1769445701337,13.43848971,124.07,123.97,28.12460073]
[1769445701640,7.3473905,124.06,123.97,28.12460073]
[1769445702037,7.3473905,124.06,123.99,28.12460073]
[1769445702740,321.8,124.09,123.99,28.12460073]
[1769445702943,7.34950555,124.08,123.99,28.12460073]
[1769445703339,7.2608,124.07,124.02,28.12460073]
[1769445703935,7.2616,124.06,124.02,28.12460073]
[1769445705939,14.61030555,124.08,124.02,28.12460073]
[1769445706246,7.34950555,124.08,124.02,28.12460073]
[1769445706644,7.2611,124.07,124.02,28.12460073]
[1769445709542,2.01371576,124.13,124.03,28.12460073]
[1769445710144,112.8824,124.15,124.06,24.36343893]
[1769445710339,136.8865346,124.15,124.06,24.36343893]
[1769445710542,24.0041346,124.15,124.06,24.36343893]
[1769445710741,24.0041346,124.15,124.08,24.36343893]
[1769445710943,136.8804346,124.15,124.08,24.36343893]
[1769445711644,7.2572,124.14,124.08,24.36343893]
[1769445711850,136.8804346,124.15,124.08,24.36343893]
[1769445712551,7.2579,124.12,124.08,24.36343893]
[1769445713257,7.2573,124.14,124.08,24.36343893]
[1769445713448,24.0041346,124.15,124.08,24.36343893]
[1769445714051,434.7436,124.17,124.08,24.36343893]
[1769445714257,458.7477346,124.17,124.08,24.36343893]
[1769445714550,7.2568,124.14,124.08,24.36343893]
[1769445716048,7.2574,124.13,124.08,24.36343893]
[1769445716848,7.2581,124.12,124.08,24.36343893]
[1769445717042,7.2581,124.12,124.04,6.09109921]
[1769445717353,24.0041346,124.14,124.05,24.36343893]
[1769445718154,24.0041346,124.14,124.06,24.36343893]
[1769445719251,7.2585,124.11,124.06,24.36343893]
[1769445720955,7.2591,124.1,124.06,24.36343893]
[1769445721158,24.0041346,124.1,124.04,24.36343893]
[1769445722250,112.8926,124.13,124.04,24.36343893]
[1769445722450,136.8967346,124.13,124.04,24.36343893]
[1769445723254,7.2583,124.12,124.05,24.36343893]
[1769445723457,24.0041346,124.13,124.05,24.36343893]
[1769445724659,31.23870667,124.12,124.05,24.36343893]
[1769445724961,24.0041346,124.12,124.05,24.36343893]
[1769445725459,31.2625346,124.12,124.05,24.36343893]
[1769445726559,7.2586,124.11,124.05,24.36343893]
[1769445727760,24.0041346,124.1,124.03,24.36343893]
[1769445729060,7.2602,124.08,124.03,24.36343893]
[1769445729961,24.0041346,124.08,124.01,24.36343893]
[1769445731056,7.2615,124.06,124.01,24.36343893]
[1769445731259,24.0041346,124.08,124.01,24.36343893]
[1769445731460,7.2615,124.06,124.01,24.36343893]
[1769445731663,24.0041346,124.07,123.99,7.2655]
[1769445731870,24.0041346,124.07,123.99,24.36343893]
[1769445732163,24.0041346,124.09,123.99,24.36343893]
[1769445732362,7.2395463,124.08,123.99,24.36343893]
[1769445732557,345.7441346,124.09,123.99,24.36343893]
[1769445732969,7.2613,124.07,124.01,7.2643]
[1769445733267,7.2613,124.07,124.02,24.36343893]
[1769445733859,24.0041346,124.07,123.99,24.36343893]
[1769445734065,24.0041346,124.06,123.99,24.36343893]
[1769445734661,7.2625,124.05,123.99,24.36343893]
[1769445734867,24.0041346,124.06,123.99,24.36343893]
[1769445735968,7.2626,124.04,123.99,24.36343893]
[1769445737368,24.0041346,124.06,123.99,24.36343893]
[1769445737671,2.38558942,124.03,123.99,24.36343893]
[1769445737872,2.38558942,124.03,123.96,2.38558942]
[1769445737873,2.38558942,124.02,123.97,24.36343893]
[1769445738259,26.38972402,124.01,123.95,24.36343893]
[1769445738465,2.38558942,123.99,123.93,37.41221734]
[1769445738866,2.38558942,124.0,123.94,31.96325874]
[1769445739076,2.38558942,124.0,123.95,24.69495874]
[1769445739576,112.9863,124.03,123.95,31.96265874]
[1769445739577,6.08972469,124.03,123.95,31.96265874]
[1769445739766,26.12348375,124.04,123.96,24.69495874]
[1769445739972,7.17119049,124.03,123.96,24.69495874]
[1769445740164,7.2638,124.02,123.96,24.69495874]
[1769445742081,26.12348375,124.04,123.97,24.69495874]
[1769445742980,14.43411931,124.03,123.97,24.69495874]
[1769445743683,7.2632,124.03,123.97,24.69495874]
[1769445744974,7.2626,124.04,123.98,24.69495874]
[1769445746580,7.2626,124.04,123.99,24.69495874]
[1769445748785,7.2632,124.03,123.99,24.69495874]
[1769445748985,26.12348375,124.04,123.97,24.69495874]
[1769445749190,33.2916283,124.03,123.94,24.69495874]
[1769445749480,7.2646,124.01,123.95,24.69495874]
[1769445749689,26.12348375,124.02,123.95,24.69495874]
[1769445749873,26.12348375,124.01,123.95,24.69495874]
[1769445750484,7.2652,124.0,123.95,24.69495874]
[1769445751581,26.12348375,124.01,123.93,37.92897299]
[1769445751784,32.21320844,124.01,123.93,37.92897299]
[1769445751985,7.2668,123.97,123.93,37.92897299]
[1769445752191,26.12348375,123.99,123.93,13.23401425]
[1769445752789,7.2667,123.97,123.93,13.23401425]
[1769445753292,26.12348375,123.99,123.93,13.23401425]
[1769445754484,7.2661,123.98,123.93,13.23401425]
[1769445755090,7.2673,123.96,123.93,13.23401425]
[1769445756998,7.2666,123.98,123.93,13.23401425]